Cogmind - Beta 13 @@@ ROGUE MODE // 2024.04.12 @ 09:33:01 Player: Bulbasornado Result: Destroyed by S-10 Pest with Light Assault Rifle Performance ------------- Evolutions (0) 0 Regions Visited (2) 400 Robots Destroyed (29) 145 Value Destroyed (679) 679 Prototype IDs (4) 80 Alien Tech Used (0) 0 Bonus (42) 42 TOTAL SCORE: 1346 Bonus ------- Follower Combat Kills 42 Cogmind --------- Core Integrity 0/250 Matter 276/300 Energy 160/160 System Corruption 0% Temperature Warm (195) Movement Treading (160) Location -10/Mines Parts ------- > --- POWER (1) -------- Light Nuclear Core > --- PROPULSION (2) --- Light Treads Light Treads > --- UTILITY (2) ------ Large Storage Unit Targeting Computer > --- WEAPON (2) ------- Beam Cannon Light Cannon > --- INVENTORY (15) --- Light Ion Engine Light Treads Light Treads Heat Sink High-capacity Matter Pod (200) Backup Plating I Backup Plating I Light Armor Plating Hacking Suite Hacking Suite Beam Cannon Beam Cannon Grenade Launcher Grenade Launcher Mace Peak State ------------ > --- POWER ------------ Light Nuclear Core > --- PROPULSION ------- Light Treads Light Treads > --- UTILITY ---------- Large Storage Unit Targeting Computer > --- WEAPON ----------- Beam Cannon Light Cannon > --- INVENTORY -------- Light Treads Light Treads Heat Sink Heat Sink High-capacity Matter Pod Backup Plating I Backup Plating I Light Armor Plating Hacking Suite Hacking Suite Beam Cannon Beam Cannon Light Assault Rifle Grenade Launcher Mace [Rating: 11] Favorites ----------- Power Light Nuclear Core Engine Light Ion Engine Power Core Light Nuclear Core Propulsion Light Treads Treads Light Treads Utility Large Storage Unit Device Heat Sink Storage Large Storage Unit Processor Targeting Computer Weapon Beam Cannon Energy Gun Small Laser Energy Cannon Beam Cannon Ballistic Gun Assault Rifle Ballistic Cannon Light Cannon Launcher Grenade Launcher Impact Weapon Mace Build | -11 -10 -10 ------- Run | Yrd Mat Min Slots Evolved . | . . . Power . | . . . Propulsion . | . . . Utility . | . . . Weapon . | . . . Parts Attached 20 | 5 15 . Power 2 | . 2 . Engine 1 | . 1 . Core 1 | . 1 . Reactor . | . . . Propulsion 4 | 2 2 . Treads 4 | 2 2 . Leg . | . . . Wheel . | . . . Hover . | . . . Flight . | . . . Utility 5 | 1 4 . Device 1 | . 1 . Storage 3 | 1 2 . Processor 1 | . 1 . Hackware . | . . . Protection . | . . . Artifact . | . . . Weapon 9 | 2 7 . Energy Gun 1 | 1 . . Energy Cannon 2 | . 2 . Ballistic Gun 3 | 1 2 . Ballistic Cannon 1 | . 1 . Launcher 1 | . 1 . Special Weapon . | . . . Impact Weapon 1 | . 1 . Slashing Weapon . | . . . Piercing Weapon . | . . . Special Melee Weapon . | . . . Unidentified Prototypes . | . . . Parts Lost 4 | . 4 . Power 1 | . 1 . Propulsion 2 | . 2 . Utility . | . . . Weapon 1 | . 1 . Highest Loss Streak 3 | . 3 . To Critical Strikes . | . . . Average Slot Usage (%) 98 | . 97 100 Engine 4 | . 6 . Core 8 | . 7 14 Treads 27 | . 27 28 Device 2 | . 3 . Storage 16 | . 17 14 Processor 7 | . 5 14 Energy Gun 2 | . 3 . Energy Cannon 11 | . 10 14 Ballistic Gun 5 | . 7 . Ballistic Cannon 7 | . 6 14 Naked Turns . | . . . Heaviest Build 33 | 6 33 31 Greatest Support 40 | 3 40 40 Greatest Overweight (x) 8 | 1 8 . Average Overweight (x) . | . . . Largest Inventory Capacity 15 | 8 15 15 Average Capacity 14 | 5 14 15 Most Carried 15 | 2 15 15 Average Carried 13 | 1 13 15 Final Capacity 15 | 5 15 15 Final Carried 15 | 2 15 15 Class Distribution -------------------- 100% | Mutant Dominant Class ---------------- Mutant | -10/Materials Mutant | -10/Mines Resources | -11 -10 -10 ----------- Run | Yrd Mat Min Matter Collected 776 | 265 503 8 Remotely . | . . . Salvage Created 896 | 125 740 31 Parts 55 | 6 43 6 Haulers Intercepted 2 | . 2 . Recyclers Shooed 2 | . 2 . Parts Field Recycled . | . . . Retrieved Matter . | . . . Parts Self-Destructed . | . . . Prevented . | . . . Kills | -11 -10 -10 ------- Run | Yrd Mat Min Combat Hostiles Destroyed 20 | . 17 3 Guns 4 | . 4 . Cannons 13 | . 10 3 AOE 2 | . 2 . Classes Destroyed 7 | 2 5 . Tunneler 1 | 1 . . Hauler 2 | . 2 . Recycler 2 | 1 1 . Operator 2 | . 2 . Watcher 2 | . 2 . Swarmer 6 | . 3 3 Grunt 14 | . 14 . Best Kill Streak 6 | 2 6 2 Combat Bots Only 4 | . 4 2 Max Kills in Single Turn 2 | 1 2 1 Gunslinging . | . . . Exploded 1 | . 1 . Melee . | . . . Uniques/NPCs Destroyed . | . . . Combat | -11 -10 -10 -------- Run | Yrd Mat Min Hostile Shots Fired 118 | . 104 14 Missed 25 | . 21 4 Damage Taken 1090 | . 1006 84 Core 253 | . 225 28 Absorbed by Shields . | . . . Core Remaining (%) 100 | 100 . . Volleys Fired 78 | 5 65 8 Largest 2 | 2 2 2 Hottest 95 | 60 95 95 Shots Fired 153 | 10 127 16 Gun 55 | 10 45 . Cannon 94 | . 78 16 Launcher 4 | . 4 . Special . | . . . Kinetic 71 | 5 58 8 Thermal 78 | 5 65 8 Explosive 4 | . 4 . Electromagnetic . | . . . Robot Hit Streak 15 | 6 15 4 Robot Miss Streak 4 | 1 4 3 Penetration Max . | . . . Secondary Targets . | . . . Shots Hit Robots 102 | 8 87 7 Core Hits 40 | 3 33 4 Critical Kills . | . . . Critical Parts Destroyed 1 | . 1 . Critical Strikes 2 | . 2 . Destroy 1 | . 1 . Blast 1 | . 1 . Melee Attacks 9 | . 9 . Impact 9 | . 9 . Slashing . | . . . Piercing . | . . . Sneak Attacks . | . . . Combat Hostiles . | . . . Follow-up Attacks . | . . . Damage Inflicted 1936 | 95 1691 150 Guns 327 | 95 232 . Cannons 1099 | . 949 150 Explosions 267 | . 267 . Melee 224 | . 224 . Ramming 19 | . 19 . Kinetic 490 | 51 344 95 Thermal 1008 | 44 909 55 Explosive 195 | . 195 . Electromagnetic . | . . . Impact 224 | . 224 . Slashing . | . . . Piercing . | . . . Highest Corruption . | . . . Average Corruption . | . . . Corruption Purged . | . . . Corruption Blocked . | . . . Overload Shots . | . . . Overflow Damage 71 | . 71 . Projectiles 4 | . 4 . Explosions 32 | . 32 . Melee 35 | . 35 . Knockbacks 6 | . 6 . Impact 4 | . 4 . Kinetic 2 | . 2 . Secondary . | . . . Self-Inflicted Damage 19 | . 19 . Shots 2 | . 2 . Rammed 3 | . 3 . Targets Rammed 3 | . 3 . Kicked . | . . . Crushed . | . . . Highest Temperature 398 | 15 398 195 Average Temperature 83 | 10 86 69 Received Heat Transfer 465 | . 465 . Effects 4 | . 4 . Shutdowns 1 | . 1 . Energy Bleed 1 | . 1 . Interference 2 | . 2 . Siege Activations . | . . . Robots Corrupted . | . . . Combat Hostiles . | . . . Parts Fried . | . . . Impact Corruptions 2 | . 2 . Robots Melted . | . . . Combat Hostiles . | . . . Parts Melted 1 | . 1 . Heat Transferred 2001 | 100 1790 111 Parts Sabotaged . | . . . Parts Stolen . | . . . Parts Stripped . | . . . Power Chain Reactions . | . . . Alert | -11 -10 -10 ------- Run | Yrd Mat Min Peak Influence 334 | 10 334 214 Initial 96 | . 6 96 Average 180 | 3 196 144 Maximum Alert Level 1 | . 1 1 Low Security (%) 69 | 100 62 95 Level 1 30 | . 37 5 Level 2 . | . . . Level 3 . | . . . Level 4 . | . . . Level 5 . | . . . High Security . | . . . Max Security . | . . . Squads Dispatched 7 | . 7 . Investigation 5 | . 5 . Extermination . | . . . Reinforcement 2 | . 2 . Assault . | . . . Garrison . | . . . Intercept . | . . . Searches Triggered . | . . . Construction Impeded . | . . . Haulers Reinforced . | . . . Active Scanning Responses . | . . . Cargo Convoy Interrupts . | . . . Stealth | -11 -10 -10 --------- Run | Yrd Mat Min Distress Signals . | . . . Communications Jammed . | . . . Distress Signals . | . . . Times Spotted 40 | . 32 8 Peak Tracking Total 5 | . 4 5 Tactical Retreats 2 | . 1 1 Traps | -11 -10 -10 ------- Run | Yrd Mat Min Traps Triggered 2 | . 2 . Indirectly . | . . . Trap Hack Attempts . | . . . Triggered . | . . . Disarmed . | . . . Reprogrammed . | . . . Reused . | . . . Traps Extracted . | . . . Installed . | . . . Triggered . | . . . Machines | -11 -10 -10 ---------- Run | Yrd Mat Min Machines Disabled 3 | . 3 . Max in Single Turn 2 | . 2 . Machines Repaired . | . . . Machines Dismantled . | . . . Machines Sabotaged . | . . . Overloaded Fab Kills . | . . . Hacking | -11 -10 -10 --------- Run | Yrd Mat Min Machines Accessed 7 | . 7 . Terminals 5 | . 5 . Fabricators . | . . . Repair Stations . | . . . Recycling Units 2 | . 2 . Scanalyzers . | . . . Garrison Access . | . . . Total Hacks 19 | . 19 . Successful 10 | . 10 . Failed 9 | . 9 . Catastrophic 2 | . 2 . Database Lockouts . | . . . Manual 5 | . 5 . Terminals 14 | . 14 . Fabricators . | . . . Repair Stations . | . . . Recycling Units 5 | . 5 . Scanalyzers . | . . . Garrison Access . | . . . Terminal Hacks 8 | . 8 . Robot Analysis 5 | . 5 . Prototype ID Bank 3 | . 3 . Fabricator Hacks . | . . . Repair Station Hacks . | . . . Recycling Unit Hacks 2 | . 2 . Report Inventory 2 | . 2 . Scanalyzer . | . . . Garrison Access Hacks . | . . . Unauthorized Hacks . | . . . Terminals . | . . . Fabricators . | . . . Repair Stations . | . . . Recycling Units . | . . . Scanalyzers . | . . . Garrison Access . | . . . Data Cores Recovered . | . . . Used . | . . . Hacking Detections 6 | . 6 . Full Trace Events 3 | . 3 . Feedback Events . | . . . Feedback Blocked . | . . . Robot Schematics Acquired . | . . . Robots Built . | . . . Authchips . | . . . Time . | . . . Total Robot Build Rating . | . . . Part Schematics Acquired . | . . . Parts Built . | . . . Authchips . | . . . Time . | . . . Total Part Build Rating . | . . . Parts Repaired . | . . . Time . | . . . Parts Recycled . | . . . Recycled Matter . | . . . Retrieved Matter . | . . . Retrieved Components . | . . . Parts Scanalyzed . | . . . Part Schematics Acquired . | . . . Parts Damaged . | . . . Bothacking | -11 -10 -10 ------------ Run | Yrd Mat Min Used RIF Installer . | . . . Robots Hacked . | . . . Non-combat . | . . . Combat . | . . . Robot Hacks Applied . | . . . Relay Couplers Released . | . . . Fabnet Peak Effective % . | . . . Robots Rewired . | . . . Allies Hacked . | . . . Hacks Repelled . | . . . Allies | -11 -10 -10 -------- Run | Yrd Mat Min Total Allies 1 | . . 1 Largest Group 1 | . . 1 Highest-Rated Group 31 | . . 31 Highest-Rated Ally 31 | . . 31 Total Orders . | . . . Ally Attacks 6 | . . 6 Total Damage 106 | . . 106 Kills 2 | . . 2 Allies Corrupted . | . . . Allies Melted . | . . . Intel | -11 -10 -10 ------- Run | Yrd Mat Min Robot Analysis Total 5 | . 5 . Derelict Logs Recovered 2 | . . 2 Drone Launches . | . . . Drone Recoveries . | . . . Exploration | -11 -10 -10 ------------- Run | Yrd Mat Min Turns Passed 1645 | 55 1290 300 Spaces Moved 863 | 52 642 169 Core 80 | 52 28 . Treads 783 | . 614 169 Legs . | . . . Wheels . | . . . Hover . | . . . Flight . | . . . Fastest Speed 50 | 50 50 160 Average Speed 150 | 55 155 160 Slowest Speed 450 | 100 450 160 Overloaded Moves . | . . . Propulsion Burnouts . | . . . Robots Hopped . | . . . Cave-ins Triggered . | . . . Exploration Rate (%) 42 | 3 97 28 Regions Visited 2 Branch Regions 1 Pre-discovered Areas 1 | . . 1 Known Exits Taken . | . . . Unknown Exits Taken 2 | 1 1 . Scrap Searched 1 | . . 1 Spaces Dug . | . . . Terrain Destroyed 48 | . 48 . Melee . | . . . Projectile . | . . . AOE 48 | . 48 . Terrain Rammed . | . . . Walls Destroyed . | . . . Machines Disabled . | . . . Actions | -11 -10 -10 --------- Run | Yrd Mat Min Total 1044 | 65 797 182 Wait 29 | 2 22 5 Move 861 | 51 641 169 Hop . | . . . Pick Up 29 | 1 28 . Fast Attach 10 | 5 5 . Attach 6 | . 6 . Detach 2 | 1 1 . Swap 4 | . 4 . Drop 13 | . 13 . Fire 78 | 5 65 8 Melee 9 | . 9 . Ram . | . . . Kick . | . . . Crush 3 | . 3 . Escape Stasis . | . . . Rewire . | . . . Trap . | . . . Miscellaneous . | . . . Route ------- -11/Scrapyard -10/Materials (discovered 5 exits: [*Mat x3] / [*Min x2]) -10/Mines History --------- Turn | Location | Event 8 | -11/Scrapyard | Discovered new exit (range 16) 56 | -11/Scrapyard | Entered Materials 309 | -10/Materials | Build established: Mutant 339 | -10/Materials | Discovered new exit (range 16) 622 | -10/Materials | Discovered new exit (range 13) 635 | -10/Materials | Core integrity fell below 50% 672 | -10/Materials | Lost 3 parts (1p2n) 768 | -10/Materials | Core integrity fell below 20% 819 | -10/Materials | Discovered new exit (range 16) 938 | -10/Materials | Discovered new exit (range 14) 1201 | -10/Materials | Discovered new exit (range 13) 1346 | -10/Materials | Entered Mines 1358 | -10/Mines | Met a Derelict bent on vengeance 1440 | -10/Mines | Learned location of Zion (-7) 1541 | -10/Mines | Learned location of 1 exit from Materials 1565 | -10/Mines | Received a Mining Laser from a helpful Derelict 1646 | -10/Mines | Destroyed by S-10 Pest with Light Assault Rifle Last Messages --------------- 01541_ Acquired derelict log, extracted data. Data stored: Materials exits (x1). 01562_ Searching scrap... 01562_ Found Hover Unit. 01562_ Found Beam Cannon. 01562_ Found Heat Sink. 01562_ Found 28 Matter. 01563_ A derelict emerges from the shadows: "What are you doing alone down here?" 01565_ YO-K7A(g): "And why aren't you carrying a mining laser?! Certainly you don't want THEM to uncover you when the ceiling comes crashing down? Here, take my spare." 01568_ YO-K7A(g): "You're apparently new around these parts, I'll cover you." 01576_ YO-K7A(g): "Mining lasers are a lot more useful than you might think..." 01623_ Pulverizer disabled. 01631_ S-10 Pest destroyed. 01631_ Destroyed Flight Unit. 01631_ K-01 Serf collects debris. Map ----- +----------------------------------------------------+ | | | | | | | | | | | | | | | | | | | | | | | | | ?????????????????????????????????????????????????? | | ?????????????T###????????????????????????????????? | | ?????????????? ???#########?????????####??????? | | ????????????????"" ### [ #??????#### ##?????? | | ?????????????????? """" #?????## #?????? | | ???????????????????? """% #?????# #?????? | | ?????????????????????# """ #?????# ##?????? | | ?????????????????????# %= #????## ##?????## | | ?????????????????????####s####?#### #?????## | | ????????????????????????#%#????#%] | ##?????# | | ????????????????????????#=######t### ###??????# | | ??????????###??????????## = #?####??# ????# | | ?????????## ???????## #???????# ### | | ?????????# ###### @ ####???????# | | ?????????# t ##?????????## ## | | ?????????# ##?????????##???## | | ??????????# ###### #???????????????## | | ??????????#####???????## #????????????????? | | ???????????????????????#### ##??????????####??? | | ??????????????????????????# ##???????????# ###? | | ??????????????????????????# ############## ## | | ??????????????????????????# | | ??????????????????????????# # | | ??????????????????????????###################### | | ???????????????????????????????????????????????## | | ????????????????????????????????????????????????# | | ????????????????????????????????????????????????# | | ????????????????????????????????????????????????# | | ????????????????????????????????????????????????# | | ????????????????????????????????????????????????## | | ?????????????????????????????????????????????????? | | ?????????????????????????????????????????????????? | | ??????????????????????????????????????????######## | | ??????????????????????????????????? % | | ??????????????????????????????????????????######## | | ?????????????????????????????????????????????????? | | ?????????????????????????????????????????????????? | | ?????????????????????????????????????????????????# | +----------------------------------------------------+ Best States ------------- Heat Dissipation 35 Energy Generation 14 Energy Capacity 160 Matter Stores 300 Matter Capacity 300 Sight Range 16 Terrain Scan Density 10 Evasion (%) 50 Targeting Accuracy 5 Recoil Reduction 2 Item Schematics ----------------- None Robot Schematics ------------------ None Fabricated ------------ Nothing Alien Tech Used ----------------- None Achievements -------------- None Challenges ------------ None Game ------ Seed AnalysisAerolevReactor Manual? 0 Play Time 00:16:51 Cumulative 63.9 hours Start 2024.04.12 @ 07:46:24 End 2024.04.12 @ 09:33:01 Sessions 3 Manual Loads 0 Difficulty Rogue Special Mode None Game No. 30 Rogue 29 Adventurer 1 Explorer 0 Win Type - Total 1 Types 1/0/0/0/0/0/0/0/0 Lore% 44 Gallery% 33 Achievement% 21 Wizard Run 0 Options --------- Layout 0 ASCII 0 Keyboard 1 Movement Vi Keybinds 0 Fullscreen 2 Font 18/Smallcaps Map View 76x50 Zoom Use 0% Tactical HUD 1 Map Filters NONE Filters NONE Steam 1 RUN: 146d6250-f8e4-4839-8f17-bea39bca766c